bitfinex-derivatives/quotes_SOLF0:USTF0_20260105
["timestamp","ask_amount","ask_price","bid_price","bid_amount"]
[1767636887600,0.37398273,136.3,136.23,8.44815792]
[1767636888302,0.37398273,136.3,136.23,15.11911735]
[1767636889802,0.37398273,136.32,136.23,8.51111735]
[1767636890003,0.37398273,136.32,136.25,1.84015792]
[1767636891611,0.37398273,136.32,136.25,8.44725792]
[1767636891908,22.37299309,136.37,136.26,1.46]
[1767636892101,0.37398273,136.39,136.31,1.84015792]
[1767636892699,2.21414065,136.39,136.31,1.84015792]
[1767636893411,0.37398273,136.39,136.31,6.6041]
[1767636894103,0.37398273,136.39,136.31,8.44425792]
[1767636894415,1.84015792,136.4,136.31,8.44425792]
[1767636894613,2.25219063,136.44,136.35,1.84015792]
[1767636895714,0.41203271,136.44,136.35,1.84015792]
[1767636896216,0.41203271,136.44,136.33,102.7137]
[1767636896510,0.41203271,136.44,136.35,1.84015792]
[1767636896715,0.41203271,136.44,136.37,6.6012]
[1767636896916,0.41203271,136.42,136.33,104.55385792]
[1767636897307,0.41203271,136.42,136.35,6.6019]
[1767636898809,2.25219063,136.42,136.35,6.6019]
[1767636899010,0.41203271,136.42,136.35,6.6019]
[1767636899411,0.41203271,136.42,136.35,8.44205792]
[1767636899711,0.41203271,136.42,136.36,6.6017]
[1767636900313,7.00963271,136.45,136.37,1.84015792]
[1767636900706,7.00963271,136.45,136.36,1.84015792]
[1767636900707,0.41203271,136.44,136.36,1.84015792]
[1767636901218,0.41203271,136.44,136.37,6.6012]
[1767636901413,8.43775792,136.45,136.37,6.6012]
[1767636901620,0.39542514,136.5,136.42,8.43875792]
[1767636901806,0.39542514,136.5,136.42,1.84015792]
[1767636903514,0.39542514,136.46,136.37,1.84015792]
[1767636904118,6.99162514,136.48,136.36,102.6949]
[1767636904421,95.49178306,136.48,136.39,1.84015792]
[1767636904618,0.39542514,136.45,136.38,6.6005]
[1767636904922,0.39542514,136.45,136.37,1.84015792]
[1767636905117,87.05542514,136.48,136.39,1.84015792]
[1767636905323,2.23558306,136.47,136.39,1.84015792]
[1767636905526,0.39542514,136.47,136.39,1.84015792]
[1767636905716,2.23558306,136.47,136.38,1.84015792]
[1767636906724,2.23558306,136.47,136.38,8.44075792]
[1767636907124,0.39542514,136.47,136.38,8.44075792]
[1767636907425,2.23558306,136.47,136.38,8.44075792]
[1767636907619,8.83218306,136.47,136.38,8.44075792]
[1767636909126,6.5971,136.46,136.38,8.44075792]
[1767636910022,0.39542514,136.44,136.36,1.84015792]
[1767636910229,0.39542514,136.42,136.33,1.84015792]
[1767636910417,2.23558306,136.41,136.3,102.7374]
[1767636910614,2.23558306,136.41,136.32,8.44345792]
[1767636910814,2.23558306,136.39,136.32,6.6033]
[1767636911212,2.23558306,136.39,136.32,8.44345792]
[1767636911419,2.23558306,136.39,136.32,6.6033]
[1767636912819,0.39542514,136.39,136.32,6.6033]
[1767636914129,6.99582514,136.39,136.31,1.84015792]
[1767636914617,0.39542514,136.38,136.31,1.84015792]
[1767636915120,0.39542514,136.38,136.31,8.44425792]
[1767636915322,0.39542514,136.38,136.31,6.6041]
[1767636919734,0.39542514,136.38,136.31,8.44425792]
[1767636920943,0.39542514,136.38,136.31,6.6041]
[1767636922642,0.39542514,136.4,136.33,6.603]
[1767636922938,0.39542514,136.41,136.33,6.603]
[1767636923729,2.23558306,136.41,136.33,6.603]
[1767636924629,0.39542514,136.41,136.33,6.603]
[1767636924845,2.23558306,136.41,136.33,6.603]
[1767636925937,6.5999,136.4,136.33,6.603]
[1767636926132,0.39542514,136.41,136.33,6.603]
[1767636926339,2.23558306,136.41,136.33,6.603]
[1767636926536,0.39542514,136.41,136.33,6.603]
[1767636927031,6.99482514,136.41,136.34,6.6026]
[1767636927542,6.99482514,136.41,136.34,6.6027]
[1767636929334,6.6001,136.4,136.32,6.6033]
[1767636929544,0.39542514,136.39,136.32,6.6033]
[1767636929735,0.39542514,136.39,136.28,102.7521]
[1767636930037,0.39542514,136.39,136.29,2.87027622]
[1767636930629,6.6009,136.38,136.3,6.6045]
[1767636930941,7.00768118,136.38,136.3,6.6045]
[1767636931240,7.00768118,136.38,136.27,6.67095943]
[1767636931241,0.40678118,136.37,136.27,2.87027622]
[1767636931541,0.40678118,136.35,136.25,89.51027622]
[1767636932041,0.40678118,136.35,136.25,2.87027622]
[1767636932236,6.6028,136.34,136.27,6.606]
[1767636932736,86.66,136.37,136.27,2.87027622]
[1767636933137,87.06678118,136.37,136.27,2.87027622]
[1767636933438,87.06678118,136.37,136.27,9.54123565]
[1767636933641,6.6022,136.36,136.29,6.605]
[1767636936938,7.00898118,136.36,136.29,6.605]
[1767636944642,0.40678118,136.34,136.29,6.605]
[1767636944842,0.40678118,136.34,136.25,6.67095943]
[1767636945541,7.00898118,136.36,136.29,6.6048]
[1767636945746,0.40678118,136.35,136.26,9.54123565]
[1767636946245,0.40678118,136.33,136.24,6.67095943]
[1767636947551,6.6038,136.32,136.25,6.607]
[1767636949846,7.01058118,136.32,136.25,6.607]
[1767636950849,0.40678118,136.3,136.23,13.2863584]
[1767636951149,0.40678118,136.3,136.21,6.6786584]
[1767636951349,6.6062,136.27,136.2,6.6092]
[1767636951555,7.01298118,136.27,136.2,6.6092]
[1767636952445,0.40678118,136.27,136.2,6.6092]
[1767636952646,0.40678118,136.27,136.21,6.609]
[1767636953150,6.97729553,136.3,136.23,6.608]
[1767636953863,0.37219553,136.28,136.21,13.2872584]
[1767636954044,0.37219553,136.31,136.23,2.87027622]
[1767636954247,0.37219553,136.35,136.25,2.87027622]
[1767636954450,0.37219553,136.34,136.25,2.87027622]
[1767636954661,0.37219553,136.34,136.25,9.54893462]
[1767636955158,6.97509553,136.34,136.27,6.606]
[1767636955955,0.37219553,136.33,136.27,6.606]
[1767636957751,6.6029,136.34,136.27,6.606]
[1767636957951,6.97509553,136.34,136.27,6.606]
[1767636958246,0.37219553,136.34,136.27,6.606]
[1767636961865,93.3023,136.35,136.27,6.606]
[1767636962164,93.70329178,136.35,136.27,6.606]
[1767636963062,0.40099178,136.34,136.27,6.606]
[1767636963561,0.40099178,136.33,136.26,6.6786584]
[1767636963763,0.40099178,136.33,136.25,2.87027622]
[1767636963764,0.40099178,136.33,136.25,6.67699742]
[1767636964562,7.00429178,136.33,136.26,6.6065]
[1767636964960,0.40099178,136.32,136.25,6.67699742]
[1767636965159,0.40099178,136.32,136.23,9.54727364]
[1767636965468,0.40099178,136.32,136.23,6.67699742]
[1767636966365,0.40099178,136.32,136.25,6.607]
[1767636967457,0.40099178,136.34,136.26,6.6065]
[1767636968555,0.40099178,136.33,136.26,6.6065]
[1767636968763,0.40099178,136.33,136.25,6.6069]
[1767636969360,0.40099178,136.33,136.24,6.67699742]
[1767636969566,0.40099178,136.33,136.25,6.67699742]
[1767636970567,0.40099178,136.33,136.27,6.6061]
[1767636971078,0.40099178,136.33,136.25,6.67699742]
[1767636972671,7.00429178,136.33,136.26,6.6066]
[1767636974066,7.00429178,136.33,136.27,6.6061]
[1767636974270,0.40099178,136.32,136.24,6.67699742]
[1767636974778,0.40099178,136.29,136.23,6.67699742]
[1767636974975,0.40099178,136.29,136.22,6.67699742]
[1767636976671,6.6057,136.28,136.22,6.67699742]
[1767636976878,0.40099178,136.29,136.22,6.67699742]
[1767636977277,0.40099178,136.29,136.22,13.28539742]
[1767636978080,7.00619178,136.29,136.22,13.28539742]
[1767636979881,0.40099178,136.29,136.23,6.6079]
[1767636980181,0.40099178,136.29,136.22,6.67699742]
[1767636981674,7.00639178,136.29,136.22,13.28539742]
[1767636982580,0.40099178,136.29,136.22,6.67699742]
[1767636982785,0.40099178,136.27,136.2,6.67699742]
[1767636983185,6.6066,136.26,136.2,6.67699742]
[1767636984979,6.606,136.28,136.19,6.67699742]
[1767636985188,0.40099178,136.32,136.21,9.54727364]
[1767636985378,0.40099178,136.31,136.21,9.54727364]
[1767636985574,6.6047,136.3,136.24,6.6075]
[1767636985880,0.40099178,136.31,136.21,2.87027622]
[1767636985881,0.40099178,136.31,136.23,6.67699742]
[1767636986187,86.72,136.32,136.26,6.6066]
[1767636987386,93.3237,136.32,136.24,6.67699742]
[1767636988484,7.00519178,136.31,136.24,6.67699742]
[1767636989585,0.40099178,136.31,136.25,1.83952683]
[1767636989885,86.72,136.32,136.25,8.51652425]
[1767636990591,86.72,136.32,136.26,6.6066]
[1767636990982,6.99383142,136.33,136.26,6.6066]
[1767636991691,6.99383142,136.33,136.27,6.606]
[1767636991889,6.99383142,136.33,136.27,8.44552683]
[1767636992088,0.39023142,136.33,136.27,8.44552683]
[1767636992579,88.55952683,136.35,136.27,8.44552683]
[1767636992580,88.55952683,136.35,136.28,6.6056]
[1767636992780,86.72,136.35,136.29,1.83952683]
[1767636992993,86.72,136.35,136.29,8.51652425]
[1767636993189,86.72,136.35,136.29,1.83952683]
[1767636994587,86.72,136.35,136.29,8.44462683]
[1767636995388,0.39023142,136.34,136.27,13.28269742]
[1767636995589,0.39023142,136.33,136.26,6.67699742]
[1767636995795,0.39023142,136.31,136.24,6.67699742]
[1767636995992,0.39023142,136.31,136.23,8.51652425]
[1767636996592,0.39023142,136.29,136.23,6.67699742]
[1767636996798,0.39023142,136.29,136.21,8.51652425]
[1767636997000,0.39023142,136.27,136.21,6.67699742]
[1767636997296,0.39023142,136.25,136.19,6.67699742]
[1767636997494,0.39023142,136.23,136.17,6.67699742]
[1767636997697,2.22975825,136.26,136.17,8.51652425]
[1767636997897,2.22975825,136.26,136.18,6.67699742]
[1767636998098,2.22975825,136.26,136.19,1.83952683]
[1767636998400,0.39023142,136.26,136.19,1.83952683]
[1767636999502,8.83565825,136.28,136.19,8.51652425]
[1767636999702,8.83565825,136.28,136.19,15.12642425]
[1767637000909,2.22975825,136.31,136.23,1.83952683]
[1767637001110,0.39023142,136.3,136.22,1.83952683]
[1767637002608,0.39023142,136.3,136.22,8.44772683]
[1767637003705,0.39023142,136.3,136.22,6.6082]
[1767637003911,0.39023142,136.3,136.22,8.44772683]
[1767637004313,6.99513142,136.3,136.22,8.44772683]
[1767637004521,6.99513142,136.3,136.2,6.67699742]
[1767637004522,0.39023142,136.28,136.2,13.28609742]
[1767637004707,0.39023142,136.28,136.19,8.51652425]
[1767637005009,0.39023142,136.28,136.17,198.4504832]
[1767637005010,6.99653142,136.27,136.2,8.44892683]
[1767637005809,6.99653142,136.27,136.2,6.6094]
[1767637006118,0.39023142,136.26,136.18,1.83952683]
[1767637006313,2.22975825,136.25,136.17,86.72]
[1767637007420,6.6078,136.24,136.17,93.3309]
[1767637008120,6.6078,136.24,136.17,100.00789742]
[1767637008712,6.99803142,136.24,136.17,93.3309]
[1767637009619,6.607,136.26,136.18,8.44992683]
[1767637009818,6.99723142,136.26,136.18,8.44992683]
[1767637011323,6.99743142,136.25,136.18,8.44992683]
[1767637013123,0.38843164,136.23,136.17,6.67699742]
[1767637013421,0.38843164,136.22,136.15,6.67699742]
[1767637013622,0.38843164,136.22,136.13,8.51652425]
[1767637014021,0.38843164,136.22,136.14,6.6121]
[1767637015424,6.6092,136.21,136.14,6.6121]
[1767637017420,0.38843164,136.25,136.17,1.83952683]
[1767637017624,0.38843164,136.25,136.19,1.83952683]
[1767637017826,87.12843164,136.28,136.19,1.83952683]
[1767637018020,93.73443164,136.28,136.21,1.83952683]
[1767637018327,93.346,136.28,136.21,1.83952683]
[1767637018525,93.346,136.28,136.18,11.19453424]
[1767637019726,93.346,136.28,136.21,6.6088]
[1767637019925,93.73443164,136.28,136.21,6.6088]
[1767637020128,0.38843164,136.27,136.19,6.6096]
[1767637021226,6.97742316,136.26,136.16,93.41699742]
[1767637021825,6.97742316,136.26,136.14,13.41262002]
[1767637021826,0.37062316,136.22,136.14,6.67699742]
[1767637022128,0.37062316,136.22,136.13,6.67699742]
[1767637022326,0.37062316,136.22,136.12,6.67699742]
[1767637022521,6.6096,136.2,136.13,6.6125]
[1767637022722,0.37062316,136.2,136.12,6.67699742]
[1767637022922,0.37062316,136.2,136.11,6.67699742]
[1767637023328,0.37062316,136.22,136.13,102.861]
[1767637023628,0.37062316,136.22,136.13,109.53799742]
[1767637023824,6.97922316,136.22,136.15,6.6116]
[1767637024031,0.37062316,136.22,136.11,6.67699742]
[1767637024323,6.6112,136.17,136.1,6.67699742]
[1767637024528,6.6112,136.17,136.08,11.19453424]
[1767637024923,6.98222316,136.16,136.08,6.6149]
[1767637025324,6.98222316,136.16,136.07,93.41699742]
[1767637025325,0.37062316,136.16,136.07,93.41699742]
[1767637025526,6.98152316,136.18,136.08,102.9053]
[1767637026032,0.37062316,136.18,136.11,6.6138]
[1767637026329,0.37062316,136.18,136.09,102.8944]
[1767637027130,6.6099,136.2,136.09,102.8944]
[1767637027426,0.37062316,136.2,136.1,102.8911]
[1767637027829,0.37062316,136.2,136.14,6.6124]
[1767637028021,87.13062316,136.23,136.12,102.876]
[1767637028224,6.97932316,136.22,136.12,102.876]
[1767637028631,6.97932316,136.22,136.15,6.6119]
[1767637029733,92.01838,136.23,136.15,6.6119]
[1767637029926,92.38900316,136.23,136.15,6.6119]
[1767637031037,5.25838,136.23,136.14,107.37793682]
[1767637031534,5.25838,136.23,136.14,4.51753682]
[1767637031925,0.37062316,136.22,136.13,6.6125]
[1767637032241,0.37062316,136.21,136.09,92.55582069]
[1767637032934,0.37062316,136.2,136.09,92.55582069]
[1767637033230,0.37062316,136.2,136.09,99.23281811]
[1767637033432,6.6101,136.19,136.11,6.6135]
[1767637034139,0.37062316,136.18,136.09,6.6144]
[1767637035030,6.6116,136.16,136.09,6.6144]
[1767637036131,6.98222316,136.16,136.09,6.6144]
[1767637036434,6.98222316,136.16,136.07,86.76]
[1767637036435,6.6121,136.15,136.07,86.76]
[1767637036641,0.37062316,136.16,136.07,86.76]
[1767637037534,6.613,136.13,136.06,6.6162]
[1767637038242,0.37062316,136.18,136.05,102.9265]
[1767637038538,0.37062316,136.18,136.06,6.67699742]
[1767637039036,6.98272316,136.15,136.07,6.6155]
[1767637039238,0.37062316,136.18,136.05,109.60349742]
[1767637039433,0.37062316,136.18,136.06,6.67699742]
[1767637040744,6.6116,136.16,136.09,6.6148]
[1767637040937,0.37062316,136.16,136.06,6.67699742]
[1767637041443,87.15062316,136.19,136.07,109.58569742]
[1767637041643,86.78,136.19,136.07,109.58569742]
[1767637041843,0.37062316,136.18,136.07,109.58569742]
[1767637042544,6.6111,136.17,136.1,6.6143]
[1767637044946,6.98172316,136.17,136.1,6.6143]
[1767637045951,6.6116,136.16,136.07,6.67699742]
[1767637046249,6.98222316,136.16,136.07,6.67699742]
[1767637046747,6.98222316,136.16,136.09,6.6146]
[1767637047044,0.37062316,136.14,136.06,6.67699742]
[1767637047350,0.37062316,136.14,136.05,6.67699742]
[1767637048247,6.613,136.13,136.05,6.67699742]
[1767637048441,6.613,136.13,136.04,93.45699742]
[1767637048651,6.98362316,136.13,136.04,93.45699742]
[1767637049152,6.98362316,136.13,136.05,1.84432462]
[1767637049652,6.98362316,136.13,136.06,6.6163]
[1767637050549,0.37062316,136.12,136.06,6.6163]
[1767637051052,6.6125,136.14,136.07,6.6158]
[1767637052651,0.36383975,136.12,136.05,6.6164]
[1767637054647,6.97773975,136.11,136.04,6.6173]
[1767637057768,0.36383975,136.11,136.02,93.418]
[1767637057955,0.36383975,136.11,136.02,86.8]
[1767637058155,0.36383975,136.11,136.01,6.69710461]
[1767637058461,0.36383975,136.11,136.0,93.51710461]
[1767637059063,0.36383975,136.11,135.99,6.69710461]
[1767637059254,103.25223975,136.11,135.99,6.69710461]
[1767637059458,103.25223975,136.11,136.01,6.6187]
[1767637059459,0.36383975,136.08,136.01,6.6187]
[1767637059659,0.36383975,136.08,135.98,196.49570461]
[1767637059660,0.36383975,136.1,136.0,102.9664]
[1767637059859,0.36383975,136.1,136.01,102.9563]
[1767637060165,0.36383975,136.12,136.02,102.9506]
[1767637061566,6.97723975,136.12,136.06,6.6162]
[1767637062070,0.36383975,136.12,136.05,6.6168]
[1767637062973,0.36383975,136.12,136.03,189.7633]
[1767637063273,86.82,136.14,136.03,189.7633]
[1767637063575,87.18383975,136.14,136.07,6.6158]
[1767637064574,0.36383975,136.13,136.06,6.6163]
[1767637065169,0.36383975,136.13,136.04,6.617]
[1767637065370,0.36383975,136.13,136.03,86.82]
[1767637065668,6.6144,136.1,136.0,6.70139868]
[1767637065870,0.36383975,136.1,136.01,86.82]
[1767637067277,0.36383975,136.1,135.99,109.67529868]
[1767637067474,6.6154,136.08,135.98,110.95924584]
[1767637067968,0.36383975,136.08,135.97,117.04842625]
[1767637068374,0.36383975,136.08,135.98,86.82]
[1767637068565,102.8867,136.11,135.98,86.82]
[1767637068566,103.25053975,136.11,135.98,86.82]
[1767637068771,0.36383975,136.1,135.98,86.82]
[1767637069777,6.6154,136.08,136.01,6.6186]
[1767637070771,6.97923975,136.08,136.01,6.6186]
[1767637070972,6.6159,136.07,136.01,6.6186]
[1767637071178,0.36383975,136.08,135.99,6.6194]
[1767637071676,0.36383975,136.08,136.0,6.6191]
[1767637071880,103.25053975,136.11,135.98,189.8191]
[1767637072271,0.36383975,136.1,136.02,6.6182]
[1767637072666,0.36383975,136.1,135.99,102.9705]
[1767637072981,0.36383975,136.13,136.01,102.9557]
[1767637073179,103.23513975,136.13,136.0,117.02752625]
[1767637073379,6.615,136.09,136.03,6.6178]
[1767637073577,0.37850694,136.12,136.03,6.6178]
[1767637074581,6.6144,136.1,136.03,6.6178]
[1767637074881,189.6839,136.14,136.0,117.02722625]
[1767637074882,86.82,136.14,136.0,117.02722625]
[1767637075186,0.37850694,136.13,136.02,6.70139868]
[1767637075376,0.37850694,136.13,136.01,196.49749868]
[1767637075776,0.37850694,136.13,136.04,6.6172]
[1767637075978,6.614,136.11,136.04,6.6172]
[1767637076875,6.614,136.11,136.02,6.6179]
[1767637077075,6.614,136.11,136.01,93.54139868]
[1767637077577,6.614,136.11,136.01,6.70139868]
[1767637077784,6.614,136.11,136.02,86.84]
[1767637078487,6.614,136.11,136.04,9.49902586]
[1767637079685,6.6144,136.1,136.04,2.88172586]
[1767637080188,6.6151,136.09,136.01,9.58312454]
[1767637080486,0.37850694,136.11,136.01,9.58312454]
[1767637080690,6.6159,136.07,136.0,89.72172586]
[1767637080882,0.37850694,136.08,136.0,86.84]
[1767637081074,6.6174,136.04,136.0,86.84]
[1767637081475,6.6174,136.04,135.98,9.58312454]
[1767637082083,6.6174,136.04,135.98,6.70139868]
[1767637082781,6.6174,136.04,135.97,100.16199868]
[1767637083077,6.6174,136.04,135.97,93.54139868]
[1767637083281,0.34993002,136.06,135.98,6.6202]
[1767637084178,0.34993002,136.08,135.99,6.6196]
[1767637084975,0.34993002,136.08,135.98,9.58312454]
[1767637085181,0.34993002,136.1,136.0,9.58312454]
[1767637085483,0.34993002,136.1,136.01,6.70139868]
[1767637085981,0.34993002,136.1,136.02,6.6182]
[1767637086179,0.34993002,136.1,136.01,6.70139868]
[1767637086377,0.34993002,136.09,136.0,6.70139868]
[1767637086878,0.34993002,136.09,136.0,6.73267316]
[1767637087586,6.6163,136.07,136.0,13.35147316]
[1767637087971,0.34993002,136.09,136.0,6.73267316]
[1767637088484,6.6166,136.06,136.0,13.35187316]
[1767637089687,6.6166,136.06,136.0,6.73267316]
[1767637090084,6.6169,136.05,136.0,6.73267316]
[1767637090389,0.34993002,136.07,136.0,6.73267316]
[1767637090587,0.34993002,136.07,135.99,6.73267316]
[1767637090785,6.6173,136.04,135.99,6.73267316]
[1767637091886,6.619,136.01,135.93,0.06799808]
[1767637092187,6.619,136.01,135.95,0.06799808]
[1767637092782,0.34993002,136.02,135.92,6.6923459]
[1767637093093,0.34993002,136.01,135.92,0.0696459]
[1767637094792,6.6198,135.99,135.92,0.0696459]
[1767637095382,6.6198,135.99,135.92,6.6925459]
[1767637095582,0.34993002,136.01,135.92,6.6925459]
[1767637096588,6.6194,136.0,135.92,6.6925459]
[1767637096791,6.96933002,136.0,135.92,6.6925459]
[1767637097880,6.96933002,136.0,135.93,0.07763125]
[1767637098381,6.6186,136.02,135.94,0.07763125]
[1767637099689,6.6186,136.02,135.95,6.70077702]
[1767637102097,0.34993002,136.03,135.96,6.7047855]
[1767637103399,0.34993002,136.03,135.96,0.0836855]
[1767637103590,0.34993002,136.02,135.94,6.70695142]
[1767637103789,0.34993002,136.02,135.94,0.08515142]
[1767637103986,0.34993002,135.98,135.91,0.08660497]
[1767637104484,0.34993002,135.98,135.88,0.08660497]
[1767637104903,6.97063002,135.98,135.89,6.71253985]
[1767637105097,0.34993002,135.98,135.89,6.71253985]
[1767637105604,6.6213,135.96,135.89,6.71253985]
[1767637107086,0.34993002,135.97,135.9,6.6241]
[1767637107995,6.6207,135.98,135.91,6.71574728]
[1767637108202,0.34993002,136.0,135.91,6.71574728]
[1767637108203,6.96953002,136.0,135.91,6.71574728]
[1767637108502,6.96953002,136.0,135.91,0.09224728]
[1767637108503,0.34993002,136.0,135.91,0.09224728]
[1767637111496,0.34993002,136.0,135.94,6.6222]
[1767637112395,0.39129996,136.03,135.95,0.09971393]
[1767637112997,0.39129996,136.03,135.96,6.621]
[1767637113202,6.6172,136.05,135.96,0.1009978]
[1767637113807,7.00849996,136.05,135.96,0.1009978]
[1767637114008,7.00849996,136.05,135.98,6.6202]
[1767637114201,7.00849996,136.05,135.96,0.1009978]
[1767637114202,0.39129996,136.04,135.96,0.1009978]
[1767637115508,7.00969996,136.02,135.95,6.6215]
[1767637116611,0.39129996,136.02,135.96,6.6211]
[1767637117613,7.00979996,136.02,135.94,6.622]
[1767637118306,7.00979996,136.02,135.95,6.6217]
[1767637120608,0.39129996,135.99,135.9,0.10960107]
[1767637121709,7.01179996,135.98,135.91,6.6236]
[1767637124311,0.39129996,135.98,135.92,6.6231]
[1767637124910,6.6194,136.0,135.93,6.6226]
[1767637125111,7.01069996,136.0,135.93,6.6226]
[1767637125314,6.6198,135.99,135.93,6.6226]
[1767637126410,6.6213,135.96,135.89,6.6244]
[1767637126613,17.77113808,136.03,135.83,13.61567938]
[1767637126614,189.9089,135.95,135.83,8.07789104]
[1767637126811,1.85115483,135.89,135.8,103.1178]
[1767637127116,93.5222,135.94,135.81,103.1065]
[1767637127411,0.25440782,135.93,135.83,104.94365483]
[1767637127609,1.85115483,135.94,135.83,198.47075483]
[1767637127810,6.87560782,135.96,135.86,1.85115483]
[1767637128114,0.25440782,135.96,135.88,1.85115483]
[1767637128318,196.4983,135.99,135.85,109.7004]
[1767637128319,6.88021995,135.99,135.86,103.0697]
[1767637128611,6.6188,136.01,135.9,0.36067938]
[1767637128812,0.26001995,136.0,135.91,0.36067938]
[1767637129318,0.26556037,135.97,135.88,0.36067938]
[1767637129501,0.26556037,135.96,135.85,0.36067938]
[1767637129707,0.26556037,135.95,135.85,87.28067938]
[1767637130115,6.88736037,135.95,135.85,87.28067938]
[1767637130314,0.27104224,135.93,135.85,0.36067938]
[1767637131014,0.27104224,135.92,135.82,0.36067938]
[1767637133817,0.27104224,135.92,135.83,0.40411376]
[1767637137121,0.27104224,135.92,135.83,7.03141376]
[1767637138527,6.6228,135.93,135.83,0.40411376]
[1767637138528,0.31723536,135.91,135.83,0.40411376]
[1767637139528,6.94103536,135.91,135.83,0.40411376]
[1767637140330,107.56279184,135.93,135.82,6.6278]
[1767637140331,0.32697138,135.89,135.82,6.6278]
[1767637140722,0.32697138,135.89,135.8,7.03281376]
[1767637141032,0.33707389,135.92,135.82,0.41926576]
[1767637141532,0.33707389,135.92,135.84,0.41926576]
[1767637142625,6.6237,135.91,135.84,0.41926576]
[1767637142933,6.6237,135.91,135.81,0.41926576]
[1767637142934,6.97003577,135.91,135.81,0.41926576]
[1767637143734,6.97003577,135.91,135.84,6.627]
[1767637147039,6.6242,135.9,135.83,0.41926576]
[1767637147737,0.34633577,135.91,135.83,7.04666576]
[1767637148433,0.36859324,135.94,135.83,0.41926576]
[1767637148634,0.36859324,135.92,135.83,0.41926576]
[1767637148829,6.99179324,135.92,135.84,6.627]
[1767637149034,6.99179324,135.92,135.84,7.04626576]
[1767637149736,0.36859324,135.92,135.84,0.41926576]
[1767637150330,6.99219324,135.92,135.84,0.41926576]
[1767637150530,8.84249578,135.92,135.84,0.41926576]
[1767637151426,7.00394692,135.94,135.86,6.6261]
[1767637151633,2.23164946,135.93,135.86,6.6261]
[1767637152736,2.23164946,135.93,135.84,0.41926576]
[1767637152737,1.85030254,135.89,135.81,0.41926576]
[1767637152935,1.85030254,135.89,135.82,0.41926576]
[1767637153141,1.85030254,135.91,135.84,0.41926576]
[1767637153335,2.23989893,135.93,135.84,0.41926576]
[1767637153534,0.38959639,135.92,135.84,0.41926576]
[1767637154542,7.01319639,135.92,135.85,6.6265]
[1767637155843,0.38959639,135.92,135.86,6.626]
[1767637156035,0.38959639,135.92,135.85,1.85030254]
[1767637156246,0.38959639,135.92,135.84,0.41926576]
[1767637156433,0.38959639,135.92,135.84,2.2695683]
[1767637157241,7.01289639,135.92,135.86,6.626]
[1767637157444,7.01289639,135.92,135.84,0.41926576]
[1767637158545,7.01289639,135.92,135.85,6.6266]
[1767637158842,6.6238,135.91,135.84,0.41926576]
[1767637160243,7.03790808,135.91,135.84,0.41926576]
[1767637160742,7.03840808,135.9,135.83,6.6274]
[1767637161136,7.03840808,135.9,135.83,7.04666576]
[1767637162234,7.03840808,135.9,135.84,6.627]
[1767637162429,6.6232,135.92,135.85,0.41926576]
[1767637162733,7.03730808,135.92,135.85,0.41926576]
[1767637163543,7.03730808,135.92,135.85,7.04576576]
[1767637164244,0.41410808,135.92,135.86,6.6258]
[1767637164746,0.41410808,135.93,135.86,7.04506576]
[1767637165645,7.03720808,135.93,135.86,7.04506576]
[1767637169046,189.9599,135.96,135.82,103.0959]
[1767637169047,0.41410808,135.91,135.84,0.41926576]
[1767637169447,0.41410808,135.91,135.85,1.85030254]
[1767637169652,0.41410808,135.91,135.86,6.626]
[1767637170149,7.03670808,135.94,135.87,6.6254]
[1767637170349,5.96777163,135.93,135.87,6.6254]
[1767637170550,5.96777163,135.92,135.87,6.6254]
[1767637170756,6.6227,135.93,135.87,6.6254]
[1767637171347,7.08096726,135.93,135.87,6.6254]
[1767637171548,7.08096726,135.93,135.86,6.6261]
[1767637172154,7.08096726,135.93,135.87,6.6255]
[1767637173354,0.45826726,135.93,135.87,6.6255]
[1767637174456,0.46796956,135.95,135.88,7.10783747]
[1767637174754,5.73703975,135.94,135.88,7.10783747]
[1767637174949,0.46796956,135.95,135.88,7.10783747]
[1767637175547,7.08966956,135.95,135.88,7.10783747]
[1767637177356,6.6224,135.94,135.88,7.10783747]
[1767637177558,0.47731745,135.94,135.87,9.04933751]
[1767637177957,0.48035997,135.93,135.85,9.04933751]
[1767637178160,0.48035997,135.93,135.84,9.53227498]
[1767637178360,0.48035997,135.93,135.85,0.48293747]
[1767637178660,29.46720572,135.93,135.86,6.6261]
[1767637178963,22.84410572,135.93,135.86,6.6261]
[1767637180263,6.6233,135.92,135.86,6.6261]
[1767637180464,6.6233,135.92,135.86,7.10903747]
[1767637182664,0.48035997,135.93,135.86,7.10903747]